[Event "December 5 Early 2023"]
[Site "https://www.chess.com"]
[Date "2023.12.05"]
[Round "7"]
[White "Yelisieiev, Yevhenii"]
[Black "Hambleton, Aman"]
[Result "0-1"]
[Board "57"]
[TimeControl "180+1"]
[WhiteFideId "14139642"]
[BlackFideId "2606577"]
[WhiteElo "2554"]
[BlackElo "2707"]
[WhiteTeam "GER"]
[BlackTeam "CAN"]
[WhiteClock "0:00:09"]
[BlackClock "0:00:06"]

1. d4 {[%clk 0:03:00]}  Nf6 {[%clk 0:02:59]} 2. Nf3 {[%clk 0:03:00]}  e6 {[%clk 0:02:58]} 3. c4 {[%clk 0:03:00]}  b6 {[%clk 0:02:57]} 4. a3 {[%clk 0:02:58]}  Bb7 {[%clk 0:02:55]} 5. Nc3 {[%clk 0:02:59]}  g6 {[%clk 0:02:44]} 6. g3 {[%clk 0:02:54]}  Bg7 {[%clk 0:02:37]} 7. Bg2 {[%clk 0:02:54]}  Ne4 {[%clk 0:02:37]} 8. Qc2 {[%clk 0:02:49]}  Nxc3 {[%clk 0:02:35]} 9. bxc3 {[%clk 0:02:49]}  d6 {[%clk 0:02:34]} 10. O-O {[%clk 0:02:48]}  Nd7 {[%clk 0:02:33]} 11. Ne1 {[%clk 0:02:42]}  Bxg2 {[%clk 0:02:31]} 12. Nxg2 {[%clk 0:02:42]}  O-O {[%clk 0:02:10]} 13. h4 {[%clk 0:02:41]}  h5 {[%clk 0:01:59]} 14. Bg5 {[%clk 0:02:40]}  Qc8 {[%clk 0:01:59]} 15. Nf4 {[%clk 0:02:39]}  Re8 {[%clk 0:01:22]} 16. Rad1 {[%clk 0:02:27]}  Qa6 {[%clk 0:01:06]} 17. Qd3 {[%clk 0:02:14]}  Rab8 {[%clk 0:00:37]} 18. g4 {[%clk 0:02:13]}  hxg4 {[%clk 0:00:17]} 19. h5 {[%clk 0:02:13]}  Qa5 {[%clk 0:00:18]} 20. c5 {[%clk 0:02:04]}  bxc5 {[%clk 0:00:16]} 21. hxg6 {[%clk 0:02:03]}  Nf8 {[%clk 0:00:11]} 22. gxf7+ {[%clk 0:02:02]}  Kxf7 {[%clk 0:00:12]} 23. d5 {[%clk 0:01:52]}  c4 {[%clk 0:00:09]} 24. Qxc4 {[%clk 0:01:50]}  e5 {[%clk 0:00:04]} 25. Nh5 {[%clk 0:01:45]}  Qb5 {[%clk 0:00:01]} 26. Qxg4 {[%clk 0:01:44]}  Qd7 {[%clk 0:00:02]} 27. Qf3+ {[%clk 0:01:35]}  Kg6 {[%clk 0:00:02]} 28. Nxg7 {[%clk 0:01:31]}  Qxg7 {[%clk 0:00:01]} 29. Qg3 {[%clk 0:01:27]}  Kf7 {[%clk 0:00:01]} 30. f4 {[%clk 0:01:27]}  e4 {[%clk 0:00:01]} 31. f5 {[%clk 0:01:20]}  Nh7 {[%clk 0:00:01]} 32. Bh4 {[%clk 0:01:15]}  Qxg3+ {[%clk 0:00:02]} 33. Bxg3 {[%clk 0:01:15]}  Rb3 {[%clk 0:00:01]} 34. Rc1 {[%clk 0:01:11]}  Nf6 {[%clk 0:00:02]} 35. Rfd1 {[%clk 0:01:07]}  Rg8 {[%clk 0:00:02]} 36. Kf2 {[%clk 0:01:05]}  Rg5 {[%clk 0:00:03]} 37. Bf4 {[%clk 0:01:04]}  Rxf5 {[%clk 0:00:03]} 38. e3 {[%clk 0:01:04]}  Nxd5 {[%clk 0:00:04]} 39. Rd4 {[%clk 0:00:59]}  Nxf4 {[%clk 0:00:04]} 40. exf4 {[%clk 0:00:59]}  Rxf4+ {[%clk 0:00:05]} 41. Ke3 {[%clk 0:01:00]}  Rf3+ {[%clk 0:00:06]} 42. Kxe4 {[%clk 0:01:00]}  Rfxc3 {[%clk 0:00:06]} 43. Rf1+ {[%clk 0:00:59]}  Ke6 {[%clk 0:00:06]} 44. Ra4 {[%clk 0:00:55]}  Rxa3 {[%clk 0:00:06]} 45. Rxa3 {[%clk 0:00:52]}  Rxa3 {[%clk 0:00:07]} 46. Kd4 {[%clk 0:00:53]}  Kd7 {[%clk 0:00:07]} 47. Kd5 {[%clk 0:00:49]}  Ra5+ {[%clk 0:00:07]} 48. Kc4 {[%clk 0:00:49]}  Kc6 {[%clk 0:00:07]} 49. Kb4 {[%clk 0:00:49]}  Rb5+ {[%clk 0:00:07]} 50. Ka4 {[%clk 0:00:49]}  a5 {[%clk 0:00:06]} 51. Rc1+ {[%clk 0:00:49]}  Rc5 {[%clk 0:00:07]} 52. Rh1 {[%clk 0:00:48]}  Kb6 {[%clk 0:00:07]} 53. Rh4 {[%clk 0:00:47]}  d5 {[%clk 0:00:07]} 54. Rh6+ {[%clk 0:00:47]}  c6 {[%clk 0:00:07]} 55. Rh8 {[%clk 0:00:47]}  Rc4+ {[%clk 0:00:08]} 56. Ka3 {[%clk 0:00:47]}  Kc5 {[%clk 0:00:08]} 57. Ra8 {[%clk 0:00:44]}  Kd4 {[%clk 0:00:07]} 58. Rxa5 {[%clk 0:00:43]}  c5 {[%clk 0:00:07]} 59. Kb2 {[%clk 0:00:42]}  Rb4+ {[%clk 0:00:06]} 60. Kc2 {[%clk 0:00:43]}  c4 {[%clk 0:00:06]} 61. Ra1 {[%clk 0:00:41]}  Rb8 {[%clk 0:00:06]} 62. Rh1 {[%clk 0:00:36]}  Rg8 {[%clk 0:00:05]} 63. Rh2 {[%clk 0:00:36]}  Kc5 {[%clk 0:00:05]} 64. Rh5 {[%clk 0:00:32]}  Rg2+ {[%clk 0:00:04]} 65. Kc3 {[%clk 0:00:32]}  Rg3+ {[%clk 0:00:04]} 66. Kc2 {[%clk 0:00:32]}  Re3 {[%clk 0:00:04]} 67. Kd2 {[%clk 0:00:31]}  Re4 {[%clk 0:00:03]} 68. Kc3 {[%clk 0:00:30]}  Rf4 {[%clk 0:00:01]} 69. Rg5 {[%clk 0:00:29]}  Rf3+ {[%clk 0:00:01]} 70. Kc2 {[%clk 0:00:29]}  Kd4 {[%clk 0:00:02]} 71. Rg4+ {[%clk 0:00:28]}  Ke5 {[%clk 0:00:02]} 72. Rg5+ {[%clk 0:00:28]}  Ke4 {[%clk 0:00:02]} 73. Rg4+ {[%clk 0:00:27]}  Rf4 {[%clk 0:00:03]} 74. Rg8 {[%clk 0:00:27]}  d4 {[%clk 0:00:02]} 75. Re8+ {[%clk 0:00:27]}  Kf3 {[%clk 0:00:02]} 76. Kd2 {[%clk 0:00:27]}  Re4 {[%clk 0:00:02]} 77. Rf8+ {[%clk 0:00:27]}  Rf4 {[%clk 0:00:02]} 78. Rc8 {[%clk 0:00:27]}  d3 {[%clk 0:00:01]} 79. Re8 {[%clk 0:00:26]}  Re4 {[%clk 0:00:02]} 80. Rf8+ {[%clk 0:00:26]}  Kg4 {[%clk 0:00:02]} 81. Kc3 {[%clk 0:00:26]}  Kg5 {[%clk 0:00:02]} 82. Rf1 {[%clk 0:00:25]}  Rf4 {[%clk 0:00:02]} 83. Re1 {[%clk 0:00:21]}  Kf5 {[%clk 0:00:03]} 84. Re8 {[%clk 0:00:22]}  Re4 {[%clk 0:00:03]} 85. Rf8+ {[%clk 0:00:22]}  Ke5 {[%clk 0:00:03]} 86. Re8+ {[%clk 0:00:22]}  Kf4 {[%clk 0:00:04]} 87. Rh8 {[%clk 0:00:20]}  Kf3 {[%clk 0:00:04]} 88. Rh3+ {[%clk 0:00:19]}  Ke2 {[%clk 0:00:02]} 89. Rh2+ {[%clk 0:00:19]}  Kd1 {[%clk 0:00:02]} 90. Rh1+ {[%clk 0:00:15]}  Re1 {[%clk 0:00:02]} 91. Rh2 {[%clk 0:00:16]}  Kc1 {[%clk 0:00:02]} 92. Ra2 {[%clk 0:00:15]}  Kb1 {[%clk 0:00:02]} 93. Rb2+ {[%clk 0:00:15]}  Ka1 {[%clk 0:00:02]} 94. Rh2 {[%clk 0:00:14]}  Rc1+ {[%clk 0:00:02]} 95. Kd4 {[%clk 0:00:15]}  Rc2 {[%clk 0:00:02]} 96. Rh1+ {[%clk 0:00:15]}  Kb2 {[%clk 0:00:03]} 97. Rh8 {[%clk 0:00:15]}  d2 {[%clk 0:00:03]} 98. Rb8+ {[%clk 0:00:16]}  Kc1 {[%clk 0:00:03]} 99. Ke3 {[%clk 0:00:10]}  d1=Q {[%clk 0:00:03]} 100. Ra8 {[%clk 0:00:08]}  Re2+ {[%clk 0:00:03]} 101. Kf4 {[%clk 0:00:08]}  Qf1+ {[%clk 0:00:04]} 102. Kg3 {[%clk 0:00:08]}  Rg2+ {[%clk 0:00:05]} 103. Kh3 {[%clk 0:00:09]}  Qh1# {[%clk 0:00:06]} 0-1

[Event "December 5 Early 2023"]
[Site "https://www.chess.com"]
[Date "2023.12.05"]
[Round "7"]
[White "Csonka, Balazs"]
[Black "Silva Lucena, Cristian"]
[Result "1-0"]
[Board "58"]
[TimeControl "180+1"]
[WhiteFideId "742910"]
[BlackFideId "2232588"]
[WhiteElo "2704"]
[BlackElo "2548"]
[WhiteTeam "HUN"]
[BlackTeam "ESP"]
[WhiteClock "0:00:16"]
[BlackClock "0:00:57"]

1. e4 {[%clk 0:03:00]}  c5 {[%clk 0:02:59]} 2. Nf3 {[%clk 0:03:00]}  Nc6 {[%clk 0:02:59]} 3. Bb5 {[%clk 0:02:57]}  g6 {[%clk 0:02:59]} 4. Bxc6 {[%clk 0:02:53]}  bxc6 {[%clk 0:02:59]} 5. O-O {[%clk 0:02:51]}  Bg7 {[%clk 0:02:59]} 6. Re1 {[%clk 0:02:49]}  Nh6 {[%clk 0:02:59]} 7. h3 {[%clk 0:02:41]}  O-O {[%clk 0:02:59]} 8. c3 {[%clk 0:02:39]}  d6 {[%clk 0:02:39]} 9. d4 {[%clk 0:02:38]}  cxd4 {[%clk 0:02:39]} 10. cxd4 {[%clk 0:02:39]}  f5 {[%clk 0:02:39]} 11. e5 {[%clk 0:02:31]}  d5 {[%clk 0:02:33]} 12. Nc3 {[%clk 0:02:17]}  e6 {[%clk 0:02:25]} 13. Bg5 {[%clk 0:02:05]}  Qe8 {[%clk 0:02:14]} 14. Na4 {[%clk 0:01:56]}  Nf7 {[%clk 0:02:14]} 15. Bf4 {[%clk 0:01:42]}  h6 {[%clk 0:02:13]} 16. h4 {[%clk 0:01:41]}  Qe7 {[%clk 0:02:13]} 17. Qd2 {[%clk 0:01:40]}  Kh7 {[%clk 0:02:12]} 18. Rac1 {[%clk 0:01:38]}  Bd7 {[%clk 0:02:11]} 19. Nc5 {[%clk 0:01:36]}  Be8 {[%clk 0:02:12]} 20. Rc3 {[%clk 0:01:30]}  Rg8 {[%clk 0:02:12]} 21. Rb3 {[%clk 0:01:27]}  Rc8 {[%clk 0:02:09]} 22. Ree3 {[%clk 0:01:19]}  Rc7 {[%clk 0:02:04]} 23. Rb8 {[%clk 0:01:15]}  Bf8 {[%clk 0:01:59]} 24. Reb3 {[%clk 0:00:41]}  g5 {[%clk 0:01:59]} 25. hxg5 {[%clk 0:00:32]}  hxg5 {[%clk 0:01:59]} 26. R3b7 {[%clk 0:00:32]}  gxf4 {[%clk 0:01:36]} 27. Rxe8 {[%clk 0:00:22]}  Qxe8 {[%clk 0:01:36]} 28. Rxc7 {[%clk 0:00:22]}  Bxc5 {[%clk 0:01:35]} 29. dxc5 {[%clk 0:00:21]}  Rg4 {[%clk 0:01:32]} 30. Qa5 {[%clk 0:00:16]}  Qg8 {[%clk 0:01:22]} 31. Kf1 {[%clk 0:00:16]}  Rxg2 {[%clk 0:01:05]} 32. Rxf7+ {[%clk 0:00:15]}  Qxf7 {[%clk 0:01:04]} 33. Kxg2 {[%clk 0:00:16]}  Qg6+ {[%clk 0:01:03]} 34. Kf1 {[%clk 0:00:16]}  Qh5 {[%clk 0:01:00]} 35. Qxa7+ {[%clk 0:00:15]}  Kg6 {[%clk 0:01:00]} 36. Ke2 {[%clk 0:00:15]}  Qh1 {[%clk 0:00:57]} 37. Qe7 {[%clk 0:00:14]}  Qc1 {[%clk 0:00:56]} 38. Qf6+ {[%clk 0:00:15]}  Kh7 {[%clk 0:00:55]} 39. Ng5+ {[%clk 0:00:15]}  Kg8 {[%clk 0:00:56]} 40. Qf7+ {[%clk 0:00:15]}  Kh8 {[%clk 0:00:57]} 41. Qf8# {[%clk 0:00:16]} 1-0

[Event "December 5 Early 2023"]
[Site "https://www.chess.com"]
[Date "2023.12.05"]
[Round "7"]
[White "Boyer, Mahel"]
[Black "Andreev, Konstantin"]
[Result "0-1"]
[Board "59"]
[TimeControl "180+1"]
[WhiteFideId "45102422"]
[BlackFideId "24239305"]
[WhiteElo "2701"]
[BlackElo "2538"]
[WhiteTeam "FRA"]
[BlackTeam "ITA"]
[WhiteClock "0:00:01"]
[BlackClock "0:00:29"]

1. e4 {[%clk 0:03:00]}  c5 {[%clk 0:03:00]} 2. d3 {[%clk 0:03:01]}  e6 {[%clk 0:03:00]} 3. g3 {[%clk 0:03:00]}  Nc6 {[%clk 0:03:01]} 4. Bg2 {[%clk 0:02:59]}  g6 {[%clk 0:03:02]} 5. f4 {[%clk 0:02:57]}  Bg7 {[%clk 0:03:02]} 6. Nf3 {[%clk 0:02:57]}  d6 {[%clk 0:03:03]} 7. O-O {[%clk 0:02:57]}  Nge7 {[%clk 0:03:03]} 8. c3 {[%clk 0:02:57]}  O-O {[%clk 0:03:04]} 9. Be3 {[%clk 0:02:58]}  b5 {[%clk 0:03:03]} 10. d4 {[%clk 0:02:58]}  cxd4 {[%clk 0:03:04]} 11. cxd4 {[%clk 0:02:56]}  d5 {[%clk 0:03:03]} 12. e5 {[%clk 0:02:57]}  a5 {[%clk 0:03:02]} 13. Re1 {[%clk 0:02:54]}  b4 {[%clk 0:03:01]} 14. Nbd2 {[%clk 0:02:52]}  a4 {[%clk 0:03:01]} 15. Rc1 {[%clk 0:02:52]}  Qb6 {[%clk 0:03:00]} 16. Bf2 {[%clk 0:02:49]}  Ba6 {[%clk 0:02:55]} 17. Qxa4 {[%clk 0:02:45]}  Bc4 {[%clk 0:02:49]} 18. Qc2 {[%clk 0:02:23]}  Bb5 {[%clk 0:02:44]} 19. Qc5 {[%clk 0:02:09]}  Qb7 {[%clk 0:02:40]} 20. a3 {[%clk 0:02:04]}  Rfc8 {[%clk 0:02:11]} 21. axb4 {[%clk 0:01:49]}  Bf8 {[%clk 0:02:06]} 22. Nb3 {[%clk 0:01:19]}  Nf5 {[%clk 0:01:54]} 23. Qc2 {[%clk 0:00:43]}  Nxb4 {[%clk 0:01:40]} 24. Qd2 {[%clk 0:00:43]}  Nd3 {[%clk 0:01:37]} 25. Rxc8 {[%clk 0:00:42]}  Rxc8 {[%clk 0:01:37]} 26. Rb1 {[%clk 0:00:21]}  Bb4 {[%clk 0:01:35]} 27. Qd1 {[%clk 0:00:21]}  Nxf2 {[%clk 0:01:03]} 28. Kxf2 {[%clk 0:00:22]}  Ba4 {[%clk 0:01:04]} 29. Nc5 {[%clk 0:00:22]}  Rxc5 {[%clk 0:00:47]} 30. Qxa4 {[%clk 0:00:22]}  Rc4 {[%clk 0:00:47]} 31. Qe8+ {[%clk 0:00:16]}  Kg7 {[%clk 0:00:47]} 32. Bf1 {[%clk 0:00:10]}  Rc2+ {[%clk 0:00:41]} 33. Kg1 {[%clk 0:00:11]}  Nxd4 {[%clk 0:00:39]} 34. Nxd4 {[%clk 0:00:09]}  Qb6 {[%clk 0:00:40]} 35. Rd1 {[%clk 0:00:07]}  Bc5 {[%clk 0:00:37]} 36. Qa4 {[%clk 0:00:07]}  Qxb2 {[%clk 0:00:31]} 37. h4 {[%clk 0:00:01]}  Rd2 {[%clk 0:00:31]} 38. Rxd2 {[%clk 0:00:01]}  Qxd2 {[%clk 0:00:31]} 39. Kh1 {[%clk 0:00:01]}  Bxd4 {[%clk 0:00:30]} 40. Qb3 {[%clk 0:00:01]}  Qf2 {[%clk 0:00:29]} 41. Qd1 {[%clk 0:00:01]}  Qg1# {[%clk 0:00:29]} 0-1

[Event "December 5 Early 2023"]
[Site "https://www.chess.com"]
[Date "2023.12.05"]
[Round "7"]
[White "Nigalidze, Gaioz"]
[Black "Filipovic, Slobodan J"]
[Result "1-0"]
[Board "61"]
[TimeControl "180+1"]
[WhiteFideId "13603078"]
[BlackFideId "939633"]
[WhiteElo "2694"]
[BlackElo "2464"]
[WhiteTeam "GEO"]
[BlackTeam "SRB"]
[WhiteClock "0:01:06"]
[BlackClock "0:00:14"]

1. e4 {[%clk 0:03:00]}  c5 {[%clk 0:02:58]} 2. Nf3 {[%clk 0:03:00]}  Nc6 {[%clk 0:02:58]} 3. Bb5 {[%clk 0:03:00]}  Nf6 {[%clk 0:02:57]} 4. Nc3 {[%clk 0:02:58]}  Qc7 {[%clk 0:02:57]} 5. O-O {[%clk 0:02:55]}  e6 {[%clk 0:02:56]} 6. d3 {[%clk 0:02:48]}  d6 {[%clk 0:02:46]} 7. a4 {[%clk 0:02:42]}  Bd7 {[%clk 0:02:44]} 8. Bg5 {[%clk 0:02:41]}  Be7 {[%clk 0:02:44]} 9. d4 {[%clk 0:02:39]}  cxd4 {[%clk 0:02:43]} 10. Nxd4 {[%clk 0:02:39]}  a6 {[%clk 0:02:42]} 11. Be2 {[%clk 0:02:37]}  h6 {[%clk 0:02:40]} 12. Bh4 {[%clk 0:02:35]}  g5 {[%clk 0:02:35]} 13. Bg3 {[%clk 0:02:34]}  Ne5 {[%clk 0:02:35]} 14. Nb3 {[%clk 0:02:27]}  Nc4 {[%clk 0:02:22]} 15. Ra2 {[%clk 0:02:25]}  Nxb2 {[%clk 0:02:16]} 16. Qd4 {[%clk 0:02:24]}  Rc8 {[%clk 0:02:00]} 17. Nd1 {[%clk 0:02:10]}  Nc4 {[%clk 0:01:56]} 18. Kh1 {[%clk 0:02:09]}  Ne5 {[%clk 0:01:50]} 19. Ne3 {[%clk 0:02:09]}  Qc3 {[%clk 0:01:32]} 20. Qb6 {[%clk 0:02:04]}  Bc6 {[%clk 0:01:21]} 21. Rd1 {[%clk 0:01:58]}  Nxe4 {[%clk 0:01:19]} 22. Na5 {[%clk 0:01:50]}  Nxg3+ {[%clk 0:01:11]} 23. hxg3 {[%clk 0:01:50]}  Qc5 {[%clk 0:01:04]} 24. Qxc5 {[%clk 0:01:49]}  dxc5 {[%clk 0:01:03]} 25. Nxc6 {[%clk 0:01:46]}  Nxc6 {[%clk 0:01:02]} 26. Rb2 {[%clk 0:01:44]}  Rc7 {[%clk 0:01:01]} 27. Rdb1 {[%clk 0:01:43]}  Na5 {[%clk 0:01:00]} 28. Nc4 {[%clk 0:01:43]}  Nxc4 {[%clk 0:00:56]} 29. Bxc4 {[%clk 0:01:43]}  O-O {[%clk 0:00:53]} 30. Rxb7 {[%clk 0:01:42]}  Rxb7 {[%clk 0:00:53]} 31. Rxb7 {[%clk 0:01:42]}  Bf6 {[%clk 0:00:53]} 32. Bxa6 {[%clk 0:01:42]}  Rd8 {[%clk 0:00:51]} 33. Bd3 {[%clk 0:01:39]}  c4 {[%clk 0:00:50]} 34. Bxc4 {[%clk 0:01:38]}  Rd1+ {[%clk 0:00:50]} 35. Kh2 {[%clk 0:01:38]}  Rd2 {[%clk 0:00:50]} 36. Bd3 {[%clk 0:01:36]}  Rxf2 {[%clk 0:00:48]} 37. a5 {[%clk 0:01:36]}  Rd2 {[%clk 0:00:37]} 38. a6 {[%clk 0:01:35]}  Bd4 {[%clk 0:00:34]} 39. a7 {[%clk 0:01:34]}  Bxa7 {[%clk 0:00:33]} 40. Rxa7 {[%clk 0:01:34]}  Rf2 {[%clk 0:00:32]} 41. Kg1 {[%clk 0:01:32]}  Rd2 {[%clk 0:00:30]} 42. Ra1 {[%clk 0:01:30]}  Kg7 {[%clk 0:00:30]} 43. g4 {[%clk 0:01:30]}  Kf6 {[%clk 0:00:28]} 44. Rf1+ {[%clk 0:01:28]}  Ke7 {[%clk 0:00:27]} 45. Bh7 {[%clk 0:01:25]}  f6 {[%clk 0:00:20]} 46. Bd3 {[%clk 0:01:23]}  Kf7 {[%clk 0:00:18]} 47. Re1 {[%clk 0:01:21]}  Ke7 {[%clk 0:00:17]} 48. Bc4 {[%clk 0:01:20]}  Rxc2 {[%clk 0:00:16]} 49. Bxe6 {[%clk 0:01:19]}  Kd6 {[%clk 0:00:16]} 50. Bf5 {[%clk 0:01:19]}  Kd5 {[%clk 0:00:15]} 51. Rd1+ {[%clk 0:01:17]}  Ke5 {[%clk 0:00:15]} 52. Bxc2 {[%clk 0:01:16]}  Kf4 {[%clk 0:00:15]} 53. Rd6 {[%clk 0:01:15]}  Kg3 {[%clk 0:00:15]} 54. Rxf6 {[%clk 0:01:12]}  h5 {[%clk 0:00:16]} 55. gxh5 {[%clk 0:01:11]}  g4 {[%clk 0:00:16]} 56. h6 {[%clk 0:01:11]}  Kh4 {[%clk 0:00:17]} 57. h7 {[%clk 0:01:10]}  Kg5 {[%clk 0:00:17]} 58. h8=Q {[%clk 0:01:08]}  g3 {[%clk 0:00:14]} 59. Qg7+ {[%clk 0:01:06]} 1-0

[Event "December 5 Early 2023"]
[Site "https://www.chess.com"]
[Date "2023.12.05"]
[Round "7"]
[White "Bluebaum, Matthias"]
[Black "Aaditya Dhingra"]
[Result "1-0"]
[Board "62"]
[TimeControl "180+1"]
[WhiteFideId "24651516"]
[BlackFideId "25678191"]
[WhiteElo "3020"]
[BlackElo "2580"]
[WhiteTeam "GER"]
[BlackTeam "IND"]
[WhiteClock "0:02:39"]
[BlackClock "0:00:50"]

1. d4 {[%clk 0:03:00]}  d5 {[%clk 0:02:58]} 2. c4 {[%clk 0:03:01]}  e6 {[%clk 0:02:57]} 3. Nc3 {[%clk 0:03:01]}  Be7 {[%clk 0:02:57]} 4. cxd5 {[%clk 0:03:02]}  exd5 {[%clk 0:02:57]} 5. Bf4 {[%clk 0:03:03]}  c6 {[%clk 0:02:57]} 6. e3 {[%clk 0:03:03]}  Nf6 {[%clk 0:02:56]} 7. Bd3 {[%clk 0:03:03]}  Bg4 {[%clk 0:02:56]} 8. f3 {[%clk 0:03:00]}  Bh5 {[%clk 0:02:55]} 9. Nge2 {[%clk 0:03:01]}  Nbd7 {[%clk 0:02:54]} 10. O-O {[%clk 0:03:00]}  Bg6 {[%clk 0:02:54]} 11. e4 {[%clk 0:03:00]}  O-O {[%clk 0:02:47]} 12. e5 {[%clk 0:02:59]}  Ne8 {[%clk 0:02:45]} 13. Be3 {[%clk 0:02:58]}  Nc7 {[%clk 0:02:40]} 14. f4 {[%clk 0:02:58]}  Bxd3 {[%clk 0:02:38]} 15. Qxd3 {[%clk 0:02:58]}  f5 {[%clk 0:02:37]} 16. h3 {[%clk 0:02:56]}  Qe8 {[%clk 0:02:32]} 17. g4 {[%clk 0:02:53]}  Qg6 {[%clk 0:02:30]} 18. Ng3 {[%clk 0:02:53]}  Bb4 {[%clk 0:01:37]} 19. Nce2 {[%clk 0:02:47]}  fxg4 {[%clk 0:01:32]} 20. Qxg6 {[%clk 0:02:48]}  hxg6 {[%clk 0:01:32]} 21. hxg4 {[%clk 0:02:49]}  Rae8 {[%clk 0:01:17]} 22. a3 {[%clk 0:02:48]}  Be7 {[%clk 0:01:14]} 23. f5 {[%clk 0:02:49]}  Bh4 {[%clk 0:01:14]} 24. Kg2 {[%clk 0:02:48]}  c5 {[%clk 0:01:13]} 25. e6 {[%clk 0:02:47]}  cxd4 {[%clk 0:01:11]} 26. Bxd4 {[%clk 0:02:46]}  Nf6 {[%clk 0:01:10]} 27. Bc5 {[%clk 0:02:44]}  Bxg3 {[%clk 0:01:06]} 28. Nxg3 {[%clk 0:02:44]}  gxf5 {[%clk 0:01:06]} 29. gxf5 {[%clk 0:02:44]}  Nb5 {[%clk 0:01:05]} 30. Bxf8 {[%clk 0:02:44]}  Kxf8 {[%clk 0:01:06]} 31. Rad1 {[%clk 0:02:44]}  Ke7 {[%clk 0:01:04]} 32. Ne2 {[%clk 0:02:43]}  Rh8 {[%clk 0:01:00]} 33. Nf4 {[%clk 0:02:43]}  Kd6 {[%clk 0:01:00]} 34. Rfe1 {[%clk 0:02:37]}  Rh4 {[%clk 0:00:57]} 35. Kf3 {[%clk 0:02:37]}  Nc7 {[%clk 0:00:53]} 36. e7 {[%clk 0:02:38]}  Nce8 {[%clk 0:00:52]} 37. Re6+ {[%clk 0:02:37]}  Kd7 {[%clk 0:00:52]} 38. Nxd5 {[%clk 0:02:38]}  Nxd5 {[%clk 0:00:52]} 39. Rxd5+ {[%clk 0:02:38]}  Kc7 {[%clk 0:00:50]} 40. Rd8 {[%clk 0:02:39]} 1-0

[Event "December 5 Early 2023"]
[Site "https://www.chess.com"]
[Date "2023.12.05"]
[Round "7"]
[White "Malyi, Viacheslav"]
[Black "Baskakov, Egor"]
[Result "0-1"]
[Board "63"]
[TimeControl "180+1"]
[WhiteFideId "14123983"]
[BlackFideId "24197866"]
[WhiteElo "2579"]
[BlackElo "2884"]
[WhiteTeam "UKR"]
[BlackTeam "RUS"]
[WhiteClock "0:00:04"]
[BlackClock "0:00:09"]

1. e4 {[%clk 0:03:00]}  c5 {[%clk 0:03:00]} 2. Nf3 {[%clk 0:03:00]}  Nf6 {[%clk 0:03:01]} 3. Nc3 {[%clk 0:02:59]}  d5 {[%clk 0:03:00]} 4. exd5 {[%clk 0:02:55]}  Nxd5 {[%clk 0:03:01]} 5. d4 {[%clk 0:02:56]}  Nxc3 {[%clk 0:03:00]} 6. bxc3 {[%clk 0:02:57]}  g6 {[%clk 0:03:01]} 7. Be2 {[%clk 0:02:50]}  Bg7 {[%clk 0:03:01]} 8. Be3 {[%clk 0:02:51]}  O-O {[%clk 0:03:01]} 9. O-O {[%clk 0:02:52]}  cxd4 {[%clk 0:02:59]} 10. cxd4 {[%clk 0:02:52]}  Nc6 {[%clk 0:02:57]} 11. c4 {[%clk 0:02:51]}  Bg4 {[%clk 0:02:52]} 12. Rb1 {[%clk 0:02:49]}  Bxf3 {[%clk 0:02:48]} 13. Bxf3 {[%clk 0:02:49]}  Nxd4 {[%clk 0:02:47]} 14. Bxd4 {[%clk 0:02:46]}  Bxd4 {[%clk 0:02:48]} 15. Rxb7 {[%clk 0:02:41]}  e5 {[%clk 0:02:48]} 16. Bd5 {[%clk 0:02:35]}  Rb8 {[%clk 0:02:45]} 17. Qb3 {[%clk 0:02:26]}  Rxb7 {[%clk 0:02:44]} 18. Qxb7 {[%clk 0:02:27]}  Qa5 {[%clk 0:02:40]} 19. Qb3 {[%clk 0:02:17]}  Qd2 {[%clk 0:02:33]} 20. g3 {[%clk 0:02:10]}  Kg7 {[%clk 0:02:28]} 21. a4 {[%clk 0:02:00]}  h5 {[%clk 0:02:23]} 22. Qd1 {[%clk 0:01:56]}  Qb2 {[%clk 0:02:13]} 23. Kg2 {[%clk 0:01:53]}  Rd8 {[%clk 0:01:56]} 24. Qb1 {[%clk 0:01:50]}  Rb8 {[%clk 0:01:52]} 25. Qe4 {[%clk 0:01:23]}  f5 {[%clk 0:01:45]} 26. Qf3 {[%clk 0:01:21]}  Rb3 {[%clk 0:01:38]} 27. Qd1 {[%clk 0:01:17]}  e4 {[%clk 0:01:31]} 28. c5 {[%clk 0:01:14]}  Rd3 {[%clk 0:01:30]} 29. Qc1 {[%clk 0:01:07]}  Qe2 {[%clk 0:01:00]} 30. Qf4 {[%clk 0:00:57]}  Qf3+ {[%clk 0:00:47]} 31. Qxf3 {[%clk 0:00:57]}  Rxf3 {[%clk 0:00:44]} 32. c6 {[%clk 0:00:47]}  Rc3 {[%clk 0:00:37]} 33. Rb1 {[%clk 0:00:35]}  Rc2 {[%clk 0:00:24]} 34. c7 {[%clk 0:00:33]}  Bb6 {[%clk 0:00:18]} 35. c8=Q {[%clk 0:00:10]}  Rxc8 {[%clk 0:00:17]} 36. Rb2 {[%clk 0:00:09]}  Rc5 {[%clk 0:00:15]} 37. Bb3 {[%clk 0:00:08]}  Rc3 {[%clk 0:00:14]} 38. Bd5 {[%clk 0:00:08]}  Kf6 {[%clk 0:00:12]} 39. Ra2 {[%clk 0:00:05]}  Rc5 {[%clk 0:00:11]} 40. Bb7 {[%clk 0:00:05]}  g5 {[%clk 0:00:10]} 41. h3 {[%clk 0:00:05]}  Ke5 {[%clk 0:00:09]} 42. Ba8 {[%clk 0:00:04]}  f4 {[%clk 0:00:09]} 43. gxf4+ {[%clk 0:00:04]}  gxf4 {[%clk 0:00:10]} 44. Bb7 {[%clk 0:00:04]}  f3+ {[%clk 0:00:09]} 45. Kg3 {[%clk 0:00:05]}  Bc7 {[%clk 0:00:09]} 46. Kh4 {[%clk 0:00:05]}  Kf4 {[%clk 0:00:09]} 47. a5 {[%clk 0:00:04]}  Bd8# {[%clk 0:00:09]} 0-1

[Event "December 5 Early 2023"]
[Site "https://www.chess.com"]
[Date "2023.12.05"]
[Round "7"]
[White "Tologon tegin, Semetei"]
[Black "Shuvalova, Polina"]
[Result "0-1"]
[Board "64"]
[TimeControl "180+1"]
[WhiteFideId "13800574"]
[BlackFideId "24171760"]
[WhiteElo "2572"]
[BlackElo "2845"]
[WhiteTeam "KGZ"]
[BlackTeam "RUS"]
[WhiteClock "0:00:00"]
[BlackClock "0:00:56"]

1. Nf3 {[%clk 0:03:00]}  d5 {[%clk 0:02:59]} 2. e3 {[%clk 0:03:00]}  g6 {[%clk 0:02:59]} 3. d4 {[%clk 0:03:00]}  Bg7 {[%clk 0:02:59]} 4. c4 {[%clk 0:02:59]}  Nf6 {[%clk 0:02:57]} 5. Nc3 {[%clk 0:02:59]}  O-O {[%clk 0:02:57]} 6. Qb3 {[%clk 0:02:59]}  dxc4 {[%clk 0:02:53]} 7. Bxc4 {[%clk 0:02:58]}  Nbd7 {[%clk 0:02:54]} 8. O-O {[%clk 0:02:56]}  c5 {[%clk 0:02:54]} 9. Rd1 {[%clk 0:02:55]}  a6 {[%clk 0:02:46]} 10. a4 {[%clk 0:02:52]}  Qc7 {[%clk 0:02:45]} 11. h3 {[%clk 0:02:48]}  cxd4 {[%clk 0:02:43]} 12. exd4 {[%clk 0:02:33]}  Nb6 {[%clk 0:02:41]} 13. Bf1 {[%clk 0:02:32]}  Be6 {[%clk 0:02:39]} 14. d5 {[%clk 0:02:31]}  Nfxd5 {[%clk 0:02:30]} 15. Nxd5 {[%clk 0:02:29]}  Nxd5 {[%clk 0:02:30]} 16. Rxd5 {[%clk 0:02:20]}  Qc6 {[%clk 0:02:17]} 17. Bc4 {[%clk 0:02:07]}  Rac8 {[%clk 0:02:16]} 18. Nd4 {[%clk 0:01:10]}  Bxd4 {[%clk 0:01:58]} 19. Rxd4 {[%clk 0:01:10]}  Bxc4 {[%clk 0:01:59]} 20. Qb4 {[%clk 0:01:04]}  e5 {[%clk 0:01:55]} 21. Rd6 {[%clk 0:01:02]}  Qc5 {[%clk 0:01:37]} 22. Qd2 {[%clk 0:01:00]}  Be6 {[%clk 0:01:28]} 23. b4 {[%clk 0:00:52]}  Qc2 {[%clk 0:01:23]} 24. Bb2 {[%clk 0:00:52]}  Qxd2 {[%clk 0:01:23]} 25. Rxd2 {[%clk 0:00:52]}  f6 {[%clk 0:01:23]} 26. Rd6 {[%clk 0:00:34]}  Rfe8 {[%clk 0:01:22]} 27. Rb6 {[%clk 0:00:34]}  Rc7 {[%clk 0:01:16]} 28. f4 {[%clk 0:00:32]}  exf4 {[%clk 0:01:08]} 29. Bxf6 {[%clk 0:00:32]}  Bd5 {[%clk 0:01:04]} 30. Rf1 {[%clk 0:00:32]}  Re2 {[%clk 0:00:58]} 31. Rf2 {[%clk 0:00:00]}  Rc1+ {[%clk 0:00:56]} 0-1